bitfinex/quotes_SOLUSD_20260102
["timestamp","ask_amount","ask_price","bid_price","bid_amount"]
[1767365283058,1e-08,128.64,128.61,0.63116604]
[1767365283267,1e-08,128.64,128.61,21.97540166]
[1767365283456,1e-08,128.64,128.61,14.2]
[1767365283774,1e-08,128.64,128.63,5.83933652]
[1767365283950,1e-08,128.64,128.61,22.57603495]
[1767365284264,1e-08,128.64,128.62,5.83933652]
[1767365284446,1e-08,128.64,128.61,22.57603964]
[1767365284447,1e-08,128.64,128.63,5.83933652]
[1767365284646,1e-08,128.64,128.61,22.57603964]
[1767365284647,19.5405828,128.69,128.62,8.35013837]
[1767365284868,19.5405828,128.69,128.64,15.0]
[1767365284869,17.50941676,128.69,128.64,15.0]
[1767365285378,4.05857552,128.83,128.64,15.0]
[1767365285379,0.65923396,128.76,128.69,7.77061154]
[1767365285668,1e-08,128.72,128.69,7.77061154]
[1767365285846,1e-08,128.72,128.71,5.83933652]
[1767365286045,0.65923396,128.8,128.71,14.2]
[1767365286256,18.34726523,128.85,128.71,14.2]
[1767365286257,0.65923396,128.84,128.78,5.83933652]
[1767365286463,26.10836575,128.85,128.77,14.2]
[1767365286464,18.34726523,128.85,128.77,14.2]
[1767365286649,18.34726523,128.85,128.82,5.83933652]
[1767365286848,18.34726523,128.85,128.81,14.2]
[1767365287059,18.34726523,128.85,128.83,5.83933652]
[1767365287263,18.34726523,128.85,128.79,15.0]
[1767365287587,7.75594595,128.94,128.83,8.35013837]
[1767365287868,4.05176366,128.98,128.92,4.05165627]
[1767365288067,4.05145766,129.0,128.97,5.83933652]
[1767365288271,4.05145766,129.0,128.98,14.2]
[1767365288455,38.72584287,129.12,128.98,14.2]
[1767365288456,7.74660792,129.09,128.98,14.2]
[1767365288656,17.11460582,129.16,129.02,8.35013837]
[1767365288862,17.11460582,129.16,128.97,5.83933652]
[1767365288863,17.11460582,129.16,129.07,8.35013837]
[1767365289058,7.74184443,129.17,129.08,14.2]
[1767365289370,34.34770861,129.22,129.09,14.2]
[1767365289371,7.74053719,129.19,129.09,14.2]
[1767365289573,0.65923396,129.18,129.1,14.2]
[1767365289869,4.04356739,129.22,129.11,14.2]
[1767365290172,0.65923396,129.25,129.12,14.2]
[1767365290471,0.65923396,129.25,129.13,14.2]
[1767365290672,0.65923396,129.25,129.09,28.83772875]
[1767365290973,5.83933652,129.24,129.11,15.0]
[1767365291149,14.18,129.24,129.11,15.0]
[1767365291347,7.73814129,129.23,129.13,15.0]
[1767365291555,7.73814129,129.23,129.08,15.0]
[1767365291762,8.35013837,129.2,129.07,14.18]
[1767365291961,8.35013837,129.2,129.06,15.0]
[1767365292171,8.35013837,129.2,129.05,14.83923396]
[1767365292476,5.51529,129.22,129.06,0.67697162]
[1767365292660,14.18,129.22,129.06,0.67697162]
[1767365292857,8.35013837,129.19,129.06,14.85697162]
[1767365293173,0.65923396,129.14,129.07,15.0]
[1767365293473,14.16,129.2,129.04,0.67697162]
[1767365294162,5.83933652,129.15,129.04,0.67697162]
[1767365294366,14.16,129.17,129.06,0.67697162]
[1767365294699,65.77420102,129.23,129.06,0.67697162]
[1767365294856,27.08349453,129.23,129.1,0.67697162]
[1767365295059,7.73514851,129.28,129.14,0.67697162]
[1767365295283,5.83933652,129.24,129.16,0.67697162]
[1767365295461,5.83933652,129.17,129.12,0.67697162]
[1767365295778,0.65923396,129.28,129.17,0.67697162]
[1767365295982,0.65923396,129.28,129.19,0.67697162]
[1767365296157,0.75923396,129.29,129.2,0.67697162]
[1767365296498,17.87965617,129.34,129.23,15.0]
[1767365296778,0.65923396,129.34,129.24,14.16]
[1767365297379,7.73165685,129.34,129.25,14.83697162]
[1767365297578,17.87444128,129.35,129.26,0.67697162]
[1767365297579,8.12830442,129.29,129.26,0.67697162]
[1767365297756,0.65923396,129.26,129.18,15.0]
[1767365298169,8.85330442,129.19,129.13,15.0]
[1767365298483,0.65923396,129.19,129.12,14.16]
[1767365298797,0.65923396,129.26,129.11,14.16]
[1767365298954,0.65923396,129.23,129.08,15.0]
[1767365299153,0.65923396,129.23,129.1,15.0]
[1767365299352,8.85330442,129.28,129.11,14.16]
[1767365299353,8.85330442,129.14,129.11,14.16]
[1767365299588,8.85330442,129.14,129.04,0.7749535]
[1767365299589,0.65923396,129.24,129.08,15.0]
[1767365299755,0.65923396,129.24,129.05,15.0]
[1767365299756,8.35013837,129.24,129.1,15.0]
[1767365299959,0.65923396,129.23,129.1,15.0]
[1767365300181,27.07930366,129.25,129.1,15.0]
[1767365300182,8.85330442,129.13,129.1,15.0]
[1767365300385,0.65923396,129.24,129.05,8.85330442]
[1767365300592,0.65923396,129.14,129.06,15.0]
[1767365300795,0.65923396,129.21,129.08,15.0]
[1767365300985,0.65923396,129.18,129.1,15.0]
[1767365301591,8.39198991,129.32,129.17,15.0]
[1767365301773,8.85330442,129.19,129.16,14.16]
[1767365301979,8.85330442,129.17,129.11,23.35013837]
[1767365302190,8.85330442,129.16,129.12,29.16]
[1767365302487,8.85330442,129.28,129.11,14.16]
[1767365302488,0.65923396,129.15,129.11,14.16]
[1767365302688,0.65923396,129.25,129.11,29.16]
[1767365302890,0.65923396,129.25,129.11,15.0]
[1767365303074,0.65923396,129.25,129.13,15.0]
[1767365303387,8.85330442,129.14,129.13,15.0]
[1767365303589,0.65923396,129.21,129.13,15.0]
[1767365303778,8.85330442,129.17,129.15,15.0]
[1767365304017,8.85330442,129.16,129.14,14.14]
[1767365304167,8.85330442,129.15,129.14,14.14]
[1767365304478,8.85330442,129.15,129.13,14.14]
[1767365304679,0.65923396,129.26,129.15,15.0]
[1767365304894,0.65923396,129.26,129.12,8.35013837]
[1767365304895,8.85330442,129.16,129.12,8.35013837]
[1767365305065,0.65923396,129.21,129.13,14.14]
[1767365305267,9.51253838,129.14,129.06,15.77483341]
[1767365305468,0.65923396,129.13,129.04,15.0]
[1767365305769,0.65923396,129.13,129.05,14.14]
[1767365305973,8.85330442,129.06,129.04,15.0]
[1767365306167,8.85330442,129.05,129.02,15.0]
[1767365306473,0.67537319,129.18,129.07,15.0]
[1767365306883,0.67537319,129.16,129.06,8.35013837]
[1767365307080,8.85330442,129.07,129.06,14.14]
[1767365307280,8.85330442,129.07,129.05,3.64649064]
[1767365307483,8.85330442,129.06,129.0,15.0]
[1767365307789,0.67537319,129.07,129.0,29.14]
[1767365307971,0.67537319,129.1,129.0,29.14]
[1767365308172,0.67537319,129.1,129.01,14.14]
[1767365308479,8.85330442,129.04,129.02,15.0]
[1767365308664,0.67537319,129.1,129.02,29.14]
[1767365309185,8.85330442,129.05,129.04,15.0]
[1767365309388,0.67537319,129.13,129.04,29.14]
[1767365309683,8.85330442,129.05,129.02,15.0]
[1767365309884,8.85330442,129.03,129.02,15.0]
[1767365310082,8.85330442,129.03,129.0,29.14]
[1767365310278,0.67537319,129.13,129.03,18.28221973]
[1767365310479,8.85330442,129.06,129.05,15.0]
[1767365310685,0.67537319,129.13,129.05,15.0]
[1767365310995,0.67537319,129.16,129.07,15.0]
[1767365311197,7.74053719,129.19,129.07,15.0]
[1767365311515,0.67537319,129.16,129.07,15.0]
[1767365311799,8.85330442,129.08,129.07,15.0]
[1767365311978,8.85330442,129.08,129.05,29.14]
[1767365312177,8.85330442,129.12,129.04,8.35013837]
[1767365312371,0.67537319,129.11,129.05,15.0]
[1767365312572,0.67537319,129.15,129.05,15.0]
[1767365312793,27.09825643,129.16,129.03,18.28221973]
[1767365312794,8.85330442,129.06,129.03,18.28221973]
[1767365313094,0.67537319,129.1,129.03,3.28221973]
[1767365313296,8.85330442,129.04,129.03,3.28221973]
[1767365313507,8.85330442,129.04,129.0,15.0]
[1767365313665,8.85330442,129.12,129.0,15.0]
[1767365313666,8.85330442,129.01,129.0,15.0]
[1767365313867,7.74657634,129.09,128.99,34.52073525]
[1767365314071,0.67537319,129.04,128.95,29.14]
[1767365314289,0.67537319,129.11,128.98,7.7530584]
[1767365314498,8.85330442,128.99,128.96,22.75429175]
[1767365314711,8.85330442,128.97,128.95,14.14]
[1767365315065,8.85330442,128.97,128.93,30.74900028]
[1767365315304,8.85330442,128.95,128.91,15.0]
[1767365315504,8.85330442,128.94,128.91,15.0]
[1767365315701,8.35013837,129.09,128.93,15.0]
[1767365315906,8.85330442,128.98,128.94,8.35013837]
[1767365316086,0.67537319,129.07,128.94,8.35013837]
[1767365316284,8.85330442,128.97,128.93,15.0]
[1767365316480,0.67537319,129.09,128.93,8.35013837]
[1767365316685,0.67537319,129.05,128.91,23.53293405]
[1767365316904,8.85330442,128.97,128.94,15.0]
[1767365317108,0.67537319,129.06,128.94,15.0]
[1767365317408,0.67537319,129.06,128.97,15.0]
[1767365317706,0.67537319,129.06,128.97,7.7535709]
[1767365317877,8.85330442,129.0,128.96,7.75419129]
[1767365318078,0.67537319,129.07,128.95,31.10455437]
[1767365318395,0.67537319,129.03,128.95,8.35013837]
[1767365318584,2.63326065,129.0,128.96,15.0]
[1767365318781,8.85330442,129.0,128.96,15.0]
[1767365318997,0.67537319,129.08,128.98,8.85330442]
[1767365319301,0.67537319,129.1,128.98,15.0]
[1767365319497,0.67537319,129.04,128.96,31.60754128]
[1767365319698,0.52163026,128.99,128.96,22.75423686]
[1767365319900,0.52163026,128.99,128.96,31.60754128]
[1767365320206,8.85330442,129.02,128.98,7.75314002]
[1767365320381,8.85330442,129.0,128.96,34.38485226]
[1767365320581,0.67537319,129.05,128.98,7.75281614]
[1767365320787,8.85330442,129.01,128.97,7.75365995]
[1767365320994,8.85330442,129.01,128.96,15.0]
[1767365321207,0.67537319,129.1,128.99,8.85330442]
[1767365321509,14.14,129.11,128.98,22.75293719]
[1767365321510,8.85330442,129.03,128.98,50.48592561]
[1767365321699,8.85330442,129.03,128.98,31.10307556]
[1767365322205,0.67537319,129.06,128.98,16.10307556]
[1767365322407,8.85330442,129.0,128.95,31.34344279]
[1767365322616,8.85330442,129.0,128.95,24.95832997]
[1767365322843,0.67537319,129.03,128.95,16.10463582]
[1767365323129,7.74880626,129.06,128.94,15.0]
[1767365323130,8.85330442,128.98,128.94,15.0]
[1767365323296,8.85330442,129.0,128.96,7.75432874]
[1767365323497,8.85330442,129.0,128.94,15.0]
[1767365323730,8.85330442,128.98,128.94,7.75538022]
[1767365323908,8.85330442,128.98,128.93,7.75600183]
[1767365324101,7.7483341,129.06,128.92,15.0]
[1767365324329,8.85330442,128.99,128.95,8.85330442]
[1767365324518,7.7483341,129.06,128.93,7.75566443]
[1767365324519,8.85330442,128.98,128.93,7.75566443]
[1767365325032,0.67537319,129.0,128.92,36.8965609]
[1767365325204,8.85330442,128.98,128.94,8.85330442]
[1767365325410,8.85330442,128.99,128.94,8.85330442]
[1767365325832,9.52867761,129.0,128.95,8.85330442]
[1767365326141,14.14,129.06,128.96,8.85330442]
[1767365326305,14.14,129.06,128.94,15.0]
[1767365326306,8.85330442,128.99,128.94,15.0]
[1767365326505,0.67537319,129.0,128.94,8.85330442]
[1767365326704,8.85330442,128.99,128.94,22.75546983]
[1767365326908,0.67537319,129.0,128.93,15.0]
[1767365327117,0.67537319,129.05,128.95,15.0]
[1767365327325,8.85330442,128.99,128.95,8.85330442]
[1767365327640,0.67537319,129.01,128.95,8.85330442]
[1767365327641,9.52867761,129.01,128.97,8.85330442]
[1767365327807,9.52867761,129.01,128.96,8.85330442]
[1767365328007,8.85330442,128.99,128.95,8.85330442]
[1767365328206,8.85330442,128.99,128.94,7.75532156]
[1767365328426,8.85330442,128.99,128.94,16.60862598]
[1767365328629,0.67537319,129.05,128.97,9.53236471]
[1767365328803,0.67537319,129.05,129.0,9.53236471]
[1767365329014,9.53236471,129.15,128.99,9.53236471]
[1767365329015,10.2077379,129.04,128.99,9.53236471]
[1767365329223,10.2077379,129.04,128.97,15.0]
[1767365329409,9.53236471,129.01,128.97,9.53236471]
[1767365329745,9.53236471,129.01,128.95,31.10490254]
[1767365329906,0.67537319,129.01,128.96,9.53236471]
[1767365330235,0.67537319,129.03,128.97,9.53236471]
[1767365330442,7.74713356,129.08,128.97,9.53236471]
[1767365330443,10.2077379,129.02,128.97,9.53236471]
[1767365330738,0.67537319,129.02,128.98,9.41079558]
[1767365330946,9.41079558,129.01,128.96,9.41079558]
[1767365331244,0.67537319,129.02,128.95,31.10490254]
[1767365331245,10.08616877,129.02,128.97,9.41079558]
[1767365331462,10.08616877,129.02,128.95,31.10490254]
[1767365331736,0.67537319,129.07,128.95,15.0]
[1767365331937,9.41079558,129.02,128.95,22.75481208]
[1767365332243,10.08616877,129.0,128.95,9.41079558]
[1767365332415,0.67537319,129.05,128.95,22.75481329]
[1767365332618,10.08616877,129.01,128.95,7.75481329]
[1767365332813,10.08616877,129.01,128.97,9.41079558]
[1767365333018,10.08616877,129.01,128.95,7.75481329]
[1767365333533,10.08616877,129.0,128.94,7.75545933]
[1767365333739,0.67537319,129.0,128.96,9.41079558]
[1767365333915,0.67537319,129.0,128.94,7.75545933]
[1767365334115,0.67537319,129.0,128.94,27.14432236]
[1767365334535,31.29930553,129.06,128.96,9.41079558]
[1767365334728,10.08616877,129.01,128.96,9.41079558]
[1767365334920,0.67537319,129.07,128.95,8.35013837]
[1767365335121,10.08616877,129.06,129.01,9.41079558]
[1767365335342,0.67537319,129.06,128.99,15.0]
[1767365335719,0.67537319,129.06,128.99,22.75211132]
[1767365336036,10.13323243,129.05,128.99,7.75211132]
[1767365336250,0.72243685,129.04,128.99,9.41079558]
[1767365336543,0.72243685,129.06,129.02,9.41079558]
[1767365336726,9.41079558,129.05,129.01,9.41079558]
[1767365337034,10.13323243,129.05,128.98,7.75272332]
[1767365337337,9.41079558,129.04,129.0,9.41079558]
[1767365337520,0.72243685,129.05,128.97,15.0]
[1767365337725,10.13323243,129.05,129.0,9.41079558]
[1767365337923,9.41079558,129.04,129.0,9.41079558]
[1767365338325,0.72243685,129.05,129.01,9.41079558]
[1767365338538,10.13323243,129.05,128.99,22.75227464]
[1767365338838,10.13323243,129.04,129.0,9.41079558]
[1767365339047,0.72243685,129.04,129.0,9.41079558]
[1767365339252,10.13323243,129.05,129.01,9.41079558]
[1767365339429,0.72243685,129.04,129.0,7.75178636]
[1767365339634,0.72243685,129.06,129.01,9.41079558]
[1767365339945,9.41079558,129.02,128.97,7.75350141]
[1767365340238,0.72243685,129.09,128.98,15.0]
[1767365340420,0.72243685,129.09,129.0,9.41079558]
[1767365340622,5.14816801,129.08,128.99,9.41079558]
[1767365340841,0.72243685,129.07,129.01,9.41079558]
[1767365341038,10.48113768,129.14,128.98,15.0]
[1767365341347,10.48113768,129.14,128.97,9.41079558]
[1767365341348,0.72243685,129.11,129.01,27.1295415]
[1767365341577,0.72243685,129.06,129.0,15.0]
[1767365341850,21.88435417,129.13,128.99,16.8777162]
[1767365341851,0.72243685,129.11,128.99,15.0]
[1767365342156,9.41079558,129.05,129.01,9.41079558]
[1767365342326,9.41079558,129.08,128.99,22.75233947]
[1767365342530,9.41079558,129.05,129.01,9.41079558]
[1767365342822,9.41079558,129.07,129.03,9.41079558]
[1767365343028,10.13323243,129.07,129.02,9.41079558]
[1767365343225,14.14,129.12,129.04,9.41079558]
[1767365343450,15.8449914,129.15,128.99,56.27368686]
[1767365343451,0.72243685,129.09,129.01,15.0]
[1767365343626,0.72243685,129.09,129.04,9.41079558]
[1767365343627,9.41079558,129.08,129.04,9.41079558]
[1767365343825,9.41079558,129.05,128.97,15.0]
[1767365344025,0.72243685,129.04,129.0,9.41079558]
[1767365344226,0.72243685,129.09,129.03,9.41079558]
[1767365344427,10.13323243,129.06,128.98,29.14]
[1767365344655,10.13323243,129.05,129.01,9.41079558]
[1767365344855,10.13323243,129.04,128.97,8.35013837]
[1767365345036,9.41079558,129.01,128.93,34.38960657]
[1767365345239,9.41079558,129.01,128.92,15.77567483]
[1767365345240,9.41079558,128.99,128.91,15.0]
[1767365345438,10.13323243,128.99,128.95,9.41079558]
[1767365345637,10.10323243,128.99,128.92,8.38013837]
[1767365346053,14.14,129.04,128.94,0.03]
[1767365346260,9.41079558,128.99,128.92,31.10676868]
[1767365346437,14.14,129.04,128.92,7.75663031]
[1767365346629,9.41079558,128.96,128.92,9.41079558]
[1767365346963,14.14,129.04,128.89,19.59605272]
[1767365346964,9.41079558,128.95,128.89,16.30827307]
[1767365347138,5.51529,129.03,128.89,9.61079558]
[1767365347341,27.12127082,129.05,128.89,9.61079558]
[1767365347342,9.41079558,128.95,128.89,7.95853196]
[1767365347545,9.41079558,128.95,128.91,9.41079558]
[1767365347741,10.13323243,128.96,128.91,9.41079558]
[1767365347947,0.72243685,128.96,128.91,17.16809875]
[1767365348142,9.41079558,128.98,128.91,7.75730317]
[1767365348346,10.13323243,128.98,128.91,27.15067839]
[1767365348554,23.27622395,129.06,128.91,27.15067839]
[1767365348555,0.72243685,129.05,128.96,9.41079558]
[1767365348754,0.72243685,129.05,128.92,29.14]
[1767365348755,0.72243685,129.03,128.93,0.03]
[1767365348948,0.72243685,128.98,128.91,41.32067839]
[1767365349544,0.72243685,129.04,128.96,9.41079558]
[1767365349743,9.41079558,128.99,128.92,15.0]
[1767365350051,0.72243685,128.99,128.96,9.41079558]
[1767365350254,0.72243685,129.04,128.97,9.41079558]
[1767365350564,0.72243685,129.01,128.96,9.41079558]
[1767365350858,10.13323243,129.0,128.95,9.41079558]
[1767365351157,7.74914368,129.05,128.97,9.41079558]
[1767365351342,9.41079558,129.0,128.96,9.41079558]
[1767365351544,0.72243685,129.0,128.94,14.16]
[1767365351847,9.41079558,128.98,128.94,9.41079558]
[1767365352046,0.72243685,128.99,128.93,7.75614674]
[1767365352243,7.74883336,129.06,128.97,9.41079558]
[1767365352444,10.13323243,129.01,128.97,9.41079558]
[1767365352759,0.72243685,129.01,128.97,9.41079558]
[1767365353157,0.72243685,129.01,128.94,0.03]
[1767365353361,9.41079558,129.0,128.96,9.41079558]
[1767365353553,10.13323243,128.99,128.95,9.41079558]
[1767365353862,0.72243685,128.98,128.95,9.41079558]
[1767365354061,0.72243685,128.98,128.91,7.78711289]
[1767365354268,10.13323243,128.98,128.94,9.41079558]
[1767365354458,9.41079558,128.98,128.91,7.78711289]
[1767365354656,0.72243685,129.01,128.94,9.41079558]
[1767365354862,0.72243685,128.98,128.94,9.41079558]
[1767365355056,0.72243685,128.98,128.92,0.03]
[1767365355367,0.72243685,128.98,128.94,9.41079558]
[1767365355572,48.15246612,129.06,128.96,9.41079558]
[1767365355573,10.13323243,129.0,128.96,9.41079558]
[1767365355743,0.72243685,129.0,128.93,0.03]
[1767365355948,0.72243685,129.0,128.96,9.41079558]
[1767365356165,0.72243685,128.99,128.93,0.03]
[1767365356464,0.72243685,129.0,128.94,7.75513507]
[1767365356645,0.72243685,129.0,128.96,9.41079558]
[1767365356964,10.13323243,129.0,128.93,0.03]
[1767365357172,10.13323243,129.0,128.95,9.41079558]
[1767365357366,9.41079558,128.98,128.93,7.78594]
[1767365357547,9.41079558,128.98,128.93,0.03]
[1767365357753,10.13323243,128.97,128.93,9.41079558]
[1767365357955,10.13323243,128.97,128.92,9.41079558]
[1767365358264,9.41079558,128.94,128.89,9.61079558]
[1767365358456,9.41079558,128.93,128.89,9.61079558]
[1767365358652,9.41079558,128.91,128.89,0.2]
[1767365358956,0.72243685,128.89,128.84,17.1722462]
[1767365359178,0.72243685,128.89,128.83,7.76191174]
[1767365359475,0.72243685,128.89,128.84,9.41079558]
[1767365359779,9.41079558,128.85,128.82,0.2]
[1767365360077,10.13323243,128.86,128.82,0.2]
[1767365360247,0.72243685,128.86,128.82,0.2]
[1767365360444,14.14,128.91,128.82,9.61079558]
[1767365360677,0.72243685,128.9,128.82,7.96263853]
[1767365360851,9.41079558,128.84,128.82,0.2]
[1767365361168,9.41079558,128.83,128.82,0.2]
[1767365361362,14.14,128.88,128.82,0.2]
[1767365361568,9.41079558,128.84,128.82,0.2]
[1767365361861,9.41079558,128.83,128.82,0.2]
[1767365362064,0.72243685,128.94,128.82,7.96271451]
[1767365362266,10.13323243,128.87,128.82,7.96271451]
[1767365362471,9.41079558,128.86,128.82,17.37351009]
[1767365362665,10.13323243,128.87,128.83,9.41079558]
[1767365362869,10.13323243,128.87,128.82,7.96271451]
[1767365363173,0.72243685,128.87,128.82,7.96271451]
[1767365363380,10.13323243,128.87,128.82,7.96271451]
[1767365363755,0.72243685,128.87,128.83,9.41079558]
[1767365363953,9.41079558,128.89,128.82,27.5996389]
[1767365364169,14.14,128.94,128.88,9.41079558]
[1767365364476,10.13323243,128.95,128.91,9.41079558]
[1767365365049,0.72243685,128.96,128.85,24.1262346]
[1767365365363,9.41079558,128.91,128.85,8.35013837]
[1767365365569,10.13323243,128.91,128.87,9.41079558]
[1767365365781,0.72243685,128.91,128.88,9.41079558]
[1767365365959,17.16470128,128.97,128.89,9.41079558]
[1767365366156,0.70536105,128.93,128.88,9.41079558]
[1767365366356,10.11615663,128.93,128.89,9.41079558]
[1767365366573,0.70536105,128.93,128.85,34.4011027]
[1767365366776,0.70536105,128.93,128.89,9.41079558]
[1767365367076,0.67230359,128.95,128.86,0.23]
[1767365367283,0.67230359,128.99,128.9,9.41079558]
[1767365367460,0.67230359,128.95,128.9,9.41079558]
[1767365367774,0.67230359,128.95,128.91,9.41079558]
[1767365367950,0.67230359,128.97,128.88,7.75894452]
[1767365368150,10.08309917,128.94,128.9,9.41079558]
[1767365368352,9.41079558,128.97,128.93,9.41079558]
[1767365368574,0.67230359,128.97,128.89,15.23]
[1767365368768,10.08309917,128.96,128.89,0.23]
[1767365368969,0.67230359,128.96,128.93,9.41079558]
[1767365369171,0.67230359,129.03,128.91,15.23]
[1767365369382,0.67230359,129.01,128.95,9.41079558]
[1767365369568,0.67230359,128.99,128.91,15.23]
[1767365369755,0.67230359,128.98,128.95,9.41079558]
[1767365369954,10.08309917,128.98,128.91,0.23]
[1767365370258,9.41079558,129.0,128.96,9.41079558]
[1767365370473,10.08309917,128.99,128.92,27.37861929]
[1767365370653,0.67230359,128.98,128.95,9.41079558]
[1767365370982,0.67230359,128.98,128.92,7.75674837]
[1767365371166,0.67230359,128.97,128.91,7.75709895]
[1767365371368,0.67230359,128.96,128.93,9.41079558]
[1767365371570,0.67230359,128.96,128.92,9.41079558]
[1767365371885,9.41079558,128.99,128.91,7.75733904]
[1767365372177,10.08309917,128.98,128.94,9.41079558]
[1767365372389,0.67230359,128.98,128.93,7.75583218]
[1767365372560,0.67230359,128.98,128.94,9.41079558]
[1767365372876,10.08309917,128.98,128.92,7.75648508]
[1767365373183,10.08309917,128.98,128.94,9.41079558]
[1767365373370,0.67230359,129.02,128.97,9.41079558]
[1767365373579,9.41079558,129.03,128.94,7.98551169]
[1767365373877,10.08309917,129.03,128.99,9.41079558]
[1767365374085,10.08309917,129.02,128.98,9.41079558]
[1767365374456,10.08309917,129.01,128.94,14.16]
[1767365374683,10.08309917,129.0,128.93,7.98563649]
[1767365374884,0.67230359,129.0,128.96,9.41079558]
[1767365375084,0.67230359,129.0,128.94,7.75545388]
[1767365375386,9.41079558,128.97,128.9,0.23]
[1767365375688,0.67230359,128.97,128.94,9.41079558]
[1767365375891,0.67230359,129.0,128.95,9.41079558]
[1767365376067,10.08309917,128.99,128.95,9.41079558]
[1767365376266,9.41079558,128.99,128.92,7.75662102]
[1767365376467,0.67230359,128.98,128.94,9.41079558]
[1767365376781,10.08309917,128.98,128.93,9.41079558]
[1767365376982,10.08309917,128.98,128.94,9.41079558]
[1767365377778,0.67230359,128.98,128.92,7.75665361]
[1767365378093,0.67230359,129.01,128.96,9.41079558]
[1767365378267,10.08309917,129.0,128.96,9.41079558]
[1767365378690,0.67230359,128.99,128.95,9.41079558]
[1767365378888,0.67230359,128.99,128.96,9.41079558]
[1767365379393,10.08309917,128.99,128.95,9.41079558]
[1767365379697,0.67230359,128.99,128.95,9.41079558]
[1767365379880,28.78281576,129.06,128.92,0.23]
[1767365379881,0.67230359,129.07,128.98,9.41079558]
[1767365380189,0.67230359,129.03,128.99,9.41079558]
[1767365380371,0.67230359,129.01,128.98,9.41079558]
[1767365380569,0.67230359,129.01,128.95,14.39]
[1767365380775,0.67230359,129.01,128.97,9.41079558]
[1767365380979,10.08309917,129.01,128.95,22.14474785]
[1767365381180,0.67230359,129.01,128.97,9.41079558]
[1767365381567,10.08309917,129.01,128.97,9.41079558]
[1767365381797,0.67230359,129.04,128.95,14.39]
[1767365381971,9.41079558,129.01,128.95,21.91476121]
[1767365382297,10.08309917,129.01,128.96,9.41079558]
[1767365382480,0.67230359,129.0,128.95,14.16]
[1767365382686,0.67230359,128.97,128.9,12.90230359]
[1767365382903,0.67230359,128.97,128.81,8.41612031]
[1767365382904,0.57230359,128.9,128.81,8.41612031]
[1767365383097,9.41079558,128.85,128.82,0.85311765]
[1767365383408,0.57230359,128.9,128.82,0.85311765]
[1767365383409,14.71230359,128.9,128.82,0.85311765]
[1767365383713,14.14,128.93,128.83,0.65311765]
[1767365384011,0.57230359,128.92,128.84,0.65311765]
[1767365384214,9.41079558,128.89,128.85,10.06391323]
[1767365384711,9.41079558,128.88,128.85,0.65311765]
[1767365384910,0.57230359,128.92,128.83,7.76207067]
[1767365384911,0.57230359,128.9,128.83,7.76207067]
[1767365385087,14.71230359,128.92,128.85,10.06391323]
[1767365385289,9.41079558,128.89,128.85,10.06391323]
[1767365385512,9.41079558,128.87,128.83,0.65311765]
[1767365385818,21.89721757,128.92,128.85,10.06391323]
[1767365385819,9.41079558,128.89,128.85,10.06391323]
[1767365386022,9.41079558,128.88,128.85,0.65311765]
[1767365386809,9.41079558,128.86,128.82,10.26391323]
[1767365387014,0.57230359,128.9,128.82,10.26391323]
[1767365387015,9.41079558,128.87,128.82,18.02664464]
[1767365387194,9.41079558,128.88,128.83,10.06391323]
[1767365387515,7.75715022,128.92,128.85,10.06391323]
[1767365387516,9.41079558,128.89,128.85,10.06391323]
[1767365387694,14.71230359,128.92,128.85,10.06391323]
[1767365387894,9.41079558,128.88,128.85,0.65311765]
[1767365388293,9.41079558,128.87,128.85,0.65311765]
[1767365388498,9.41079558,128.88,128.85,0.65311765]
[1767365388709,14.71230359,128.92,128.85,10.06391323]
[1767365388908,9.41079558,128.88,128.85,0.65311765]
[1767365389115,9.41079558,128.88,128.82,0.2]
[1767365389116,9.41079558,128.88,128.83,10.06391323]
[1767365389310,9.41079558,128.87,128.84,0.65311765]
[1767365389507,0.57230359,128.9,128.84,0.65311765]
[1767365389704,9.41079558,128.9,128.86,0.65311765]
[1767365390006,9.41079558,128.9,128.86,10.06391323]
[1767365390204,9.41079558,128.89,128.84,8.41432595]
[1767365390514,0.57230359,128.92,128.85,6.45606767]
[1767365390713,5.80295002,128.89,128.85,6.45606767]
[1767365391192,0.57230359,128.92,128.85,6.45606767]
[1767365391394,5.80295002,128.91,128.88,0.65311765]
[1767365391691,5.80295002,128.92,128.88,6.45606767]
[1767365391892,5.80295002,128.91,128.88,0.65311765]
[1767365392213,0.57230359,128.95,128.88,0.65311765]
[1767365392394,5.80295002,128.91,128.88,0.65311765]
[1767365392592,14.14,128.95,128.88,0.65311765]
[1767365392907,0.57230359,128.94,128.88,0.65311765]
[1767365393214,5.80295002,128.92,128.88,0.65311765]